[Event "*** Titled Tuesday Blitz"]
[Site "Chess.com"]
[Date "2019.09.03"]
[Round "3"]
[White "Padenie_Zvezd"]
[Black "Bladel"]
[Result "1-0"]
[WhiteElo "2823"]
[BlackElo "2607"]
[TimeControl "180+2"]
[EndTime "15:35:18 PDT"]
[Termination "Padenie_Zvezd won by resignation"]

1. d4 {[%clk 0:03:01.9]} 1... e6 {[%clk 0:03:00.2]} 2. c4 {[%clk 0:03:02.4]}
2... Nf6 {[%clk 0:03:00.1]} 3. Nf3 {[%clk 0:03:02.9]} 3... b6 {[%clk 0:03:00.8]}
4. g3 {[%clk 0:03:01]} 4... Bb7 {[%clk 0:03:02]} 5. Bg2 {[%clk 0:03:01.8]} 5...
Be7 {[%clk 0:03:01.6]} 6. Bg5 {[%clk 0:03:02.2]} 6... h6 {[%clk 0:02:59.8]} 7.
Bxf6 {[%clk 0:03:02.7]} 7... Bxf6 {[%clk 0:03:01.7]} 8. Qd3 {[%clk 0:03:03.2]}
8... d6 {[%clk 0:02:59.7]} 9. Nc3 {[%clk 0:03:03.1]} 9... O-O {[%clk 0:02:59.9]}
10. Ng5 {[%clk 0:03:02.2]} 10... Bxg5 {[%clk 0:02:54.5]} 11. Bxb7 {[%clk
0:03:03]} 11... Nd7 {[%clk 0:02:56.4]} 12. Bxa8 {[%clk 0:03:03.9]} 12... Qxa8
{[%clk 0:02:58.3]} 13. O-O {[%clk 0:03:05.1]} 13... c5 {[%clk 0:01:47.4]} 14.
Rad1 {[%clk 0:02:56.6]} 14... cxd4 {[%clk 0:01:45.3]} 15. Qxd4 {[%clk
0:02:56.8]} 15... Be7 {[%clk 0:01:46]} 16. Nb5 {[%clk 0:02:48.8]} 16... Nc5
{[%clk 0:01:44.6]} 17. Nxd6 {[%clk 0:02:46.2]} 17... Qc6 {[%clk 0:01:38.8]} 18.
Nb5 {[%clk 0:02:43.7]} 18... a6 {[%clk 0:01:37.3]} 19. Nc3 {[%clk 0:02:44.6]}
19... Rc8 {[%clk 0:01:36.1]} 20. Qe3 {[%clk 0:02:34.9]} 20... Bf6 {[%clk
0:01:34.9]} 21. b3 {[%clk 0:02:26.9]} 21... h5 {[%clk 0:01:31.9]} 22. Rc1 {[%clk
0:02:23.7]} 22... h4 {[%clk 0:01:31.9]} 23. Rfd1 {[%clk 0:02:19.2]} 23... Qc7
{[%clk 0:01:30.1]} 24. Ne4 {[%clk 0:02:17.3]} 24... Be7 {[%clk 0:01:28.1]} 25.
Nxc5 {[%clk 0:02:14.9]} 25... Bxc5 {[%clk 0:01:28.8]} 26. Qf4 {[%clk 0:02:14.8]}
26... Qxf4 {[%clk 0:01:27.5]} 27. gxf4 {[%clk 0:02:15.6]} 27... e5 {[%clk
0:01:28]} 28. fxe5 {[%clk 0:02:15.1]} 28... Re8 {[%clk 0:01:28.9]} 29. Rd5
{[%clk 0:02:14]} 29... f6 {[%clk 0:01:28.6]} 30. Rcd1 {[%clk 0:02:09.2]} 30...
fxe5 {[%clk 0:01:19.6]} 31. Rd8 {[%clk 0:02:09.3]} 31... Kf8 {[%clk 0:01:18.6]}
32. Rxe8+ {[%clk 0:02:06.6]} 32... Kxe8 {[%clk 0:01:20.5]} 33. Rd5 {[%clk
0:02:08.3]} 33... Bd4 {[%clk 0:01:19.3]} 34. e3 {[%clk 0:02:08.2]} 34... Bc3
{[%clk 0:01:18.3]} 35. Rd6 {[%clk 0:02:09.5]} 35... Ba5 {[%clk 0:01:17.3]} 36.
a3 {[%clk 0:02:06.6]} 1-0

[Event "*** Titled Tuesday Blitz"]
[Site "Chess.com"]
[Date "2019.09.03"]
[Round "3"]
[White "Parhamov"]
[Black "ChristopherYoo"]
[Result "1-0"]
[WhiteElo "2898"]
[BlackElo "2588"]
[TimeControl "180+2"]
[EndTime "15:35:30 PDT"]
[Termination "Parhamov won by resignation"]

1. e4 {[%clk 0:03:01.9]} 1... c5 {[%clk 0:02:59.4]} 2. Nf3 {[%clk 0:03:00.4]}
2... d6 {[%clk 0:02:58.9]} 3. d4 {[%clk 0:02:59.5]} 3... cxd4 {[%clk 0:02:59.5]}
4. Nxd4 {[%clk 0:03:01.4]} 4... Nf6 {[%clk 0:02:59.9]} 5. Nc3 {[%clk 0:03:02.2]}
5... Nc6 {[%clk 0:03:00.8]} 6. Bg5 {[%clk 0:03:02.2]} 6... e6 {[%clk 0:03:01.6]}
7. Qd2 {[%clk 0:03:02.9]} 7... a6 {[%clk 0:03:02.2]} 8. O-O-O {[%clk 0:03:04]}
8... Bd7 {[%clk 0:03:03.4]} 9. f4 {[%clk 0:03:00.6]} 9... Be7 {[%clk 0:03:03.9]}
10. Kb1 {[%clk 0:02:59.6]} 10... b5 {[%clk 0:03:02.7]} 11. a3 {[%clk 0:03:00.5]}
11... Qa5 {[%clk 0:02:50.9]} 12. Nb3 {[%clk 0:02:40.2]} 12... Qc7 {[%clk
0:02:46.4]} 13. Bxf6 {[%clk 0:02:37.3]} 13... gxf6 {[%clk 0:02:46.2]} 14. g3
{[%clk 0:02:35.6]} 14... Qb6 {[%clk 0:02:17]} 15. f5 {[%clk 0:02:33.4]} 15...
O-O-O {[%clk 0:02:16.3]} 16. Ne2 {[%clk 0:02:31.5]} 16... Kb8 {[%clk 0:02:14.6]}
17. Nf4 {[%clk 0:02:32.1]} 17... Ne5 {[%clk 0:01:26.1]} 18. Nd4 {[%clk
0:02:30.7]} 18... d5 {[%clk 0:00:45.7]} 19. exd5 {[%clk 0:02:30.6]} 19... Bc8
{[%clk 0:00:43.7]} 20. fxe6 {[%clk 0:02:31]} 20... fxe6 {[%clk 0:00:44]} 21. Bg2
{[%clk 0:02:29.6]} 21... b4 {[%clk 0:00:32.9]} 22. a4 {[%clk 0:02:28.2]} 22...
Bb7 {[%clk 0:00:31.1]} 23. Nfxe6 {[%clk 0:02:27.3]} 23... Nc4 {[%clk 0:00:27]}
24. Qe2 {[%clk 0:02:28]} 24... Rc8 {[%clk 0:00:04.8]} 25. Nc6+ {[%clk
0:02:28.9]} 25... Bxc6 {[%clk 0:00:05.8]} 26. dxc6 {[%clk 0:02:30.8]} 26... Na3+
{[%clk 0:00:05.6]} 27. Ka2 {[%clk 0:02:31.1]} 27... Rxc6 {[%clk 0:00:03.7]} 28.
Bxc6 {[%clk 0:02:31.6]} 28... Qxc6 {[%clk 0:00:05.6]} 29. bxa3 {[%clk
0:02:33.1]} 29... Qc3 {[%clk 0:00:03.3]} 30. Qd3 {[%clk 0:02:32.7]} 30... b3+
{[%clk 0:00:02.9]} 31. cxb3 {[%clk 0:02:32.5]} 1-0

[Event "*** Titled Tuesday Blitz"]
[Site "Chess.com"]
[Date "2019.09.03"]
[Round "3"]
[White "Lunaticx"]
[Black "Jbd735"]
[Result "1-0"]
[WhiteElo "2841"]
[BlackElo "2474"]
[TimeControl "180+2"]
[EndTime "15:35:31 PDT"]
[Termination "Lunaticx won by resignation"]

1. e4 {[%clk 0:03:01.9]} 1... e5 {[%clk 0:03:00.3]} 2. Nf3 {[%clk 0:03:03.2]}
2... Nc6 {[%clk 0:03:01.4]} 3. Bb5 {[%clk 0:03:04.7]} 3... a6 {[%clk 0:03:02.5]}
4. Ba4 {[%clk 0:03:06.2]} 4... Nf6 {[%clk 0:03:03.7]} 5. O-O {[%clk 0:03:07.7]}
5... Be7 {[%clk 0:03:04.7]} 6. Re1 {[%clk 0:03:08.8]} 6... b5 {[%clk 0:03:05.7]}
7. Bb3 {[%clk 0:03:10.2]} 7... d6 {[%clk 0:03:07]} 8. c3 {[%clk 0:03:11]} 8...
O-O {[%clk 0:03:07.9]} 9. h3 {[%clk 0:03:12.3]} 9... Na5 {[%clk 0:03:09.1]} 10.
Bc2 {[%clk 0:03:13.4]} 10... c5 {[%clk 0:03:10.6]} 11. d4 {[%clk 0:03:14.5]}
11... Qc7 {[%clk 0:03:11.7]} 12. d5 {[%clk 0:03:15.7]} 12... Nb7 {[%clk
0:03:07]} 13. Nbd2 {[%clk 0:03:16.4]} 13... Ne8 {[%clk 0:03:06.1]} 14. g4 {[%clk
0:03:14.1]} 14... g6 {[%clk 0:03:03.9]} 15. Nf1 {[%clk 0:03:14.4]} 15... Nd8
{[%clk 0:03:01.7]} 16. Bh6 {[%clk 0:03:13.4]} 16... Ng7 {[%clk 0:03:01.9]} 17.
Ng3 {[%clk 0:03:14.3]} 17... f6 {[%clk 0:03:02.5]} 18. a4 {[%clk 0:03:12.7]}
18... Rb8 {[%clk 0:03:02.8]} 19. axb5 {[%clk 0:03:13.4]} 19... axb5 {[%clk
0:03:03.6]} 20. Qd2 {[%clk 0:03:09.9]} 20... Nf7 {[%clk 0:03:03.8]} 21. Be3
{[%clk 0:03:08]} 21... Bd7 {[%clk 0:03:00.6]} 22. Kh2 {[%clk 0:03:03.7]} 22...
Ra8 {[%clk 0:02:59.4]} 23. Reb1 {[%clk 0:02:56.4]} 23... Qb7 {[%clk 0:02:56.9]}
24. b4 {[%clk 0:02:56]} 24... c4 {[%clk 0:02:56.4]} 25. Qc1 {[%clk 0:02:52.4]}
25... Rxa1 {[%clk 0:02:54]} 26. Rxa1 {[%clk 0:02:52]} 26... Ra8 {[%clk
0:02:55.9]} 27. Ra3 {[%clk 0:02:52.1]} 27... Bc8 {[%clk 0:02:47.2]} 28. Nd2
{[%clk 0:02:40.8]} 28... Rxa3 {[%clk 0:02:46.7]} 29. Qxa3 {[%clk 0:02:42.7]}
29... Qa6 {[%clk 0:02:47.2]} 30. Qxa6 {[%clk 0:02:38.6]} 30... Bxa6 {[%clk
0:02:49.1]} 31. Nb1 {[%clk 0:02:38.9]} 31... Kf8 {[%clk 0:02:34.2]} 32. Na3
{[%clk 0:02:39.4]} 32... Ke8 {[%clk 0:02:33.8]} 33. Ne2 {[%clk 0:02:39.6]} 33...
Kd7 {[%clk 0:02:30.2]} 34. f4 {[%clk 0:02:40.5]} 34... exf4 {[%clk 0:02:21.2]}
35. Bxf4 {[%clk 0:02:41.4]} 35... Bd8 {[%clk 0:02:17.4]} 36. Nd4 {[%clk
0:02:41.7]} 36... Bb6 {[%clk 0:01:38.8]} 37. Naxb5 {[%clk 0:02:40.5]} 37... Ne5
{[%clk 0:01:35.6]} 38. Ba4 {[%clk 0:02:40.8]} 38... Ke7 {[%clk 0:01:36]} 39.
Bxe5 {[%clk 0:02:17.9]} 39... dxe5 {[%clk 0:01:17.3]} 40. Nc6+ {[%clk
0:02:18.7]} 40... Kf7 {[%clk 0:01:07.9]} 41. Nd6+ {[%clk 0:02:17.7]} 41... Kf8
{[%clk 0:01:06.6]} 42. b5 {[%clk 0:02:18.8]} 1-0

[Event "*** Titled Tuesday Blitz"]
[Site "Chess.com"]
[Date "2019.09.03"]
[Round "3"]
[White "Semajkcalbk"]
[Black "IMTominho"]
[Result "0-1"]
[WhiteElo "2437"]
[BlackElo "2701"]
[TimeControl "180+2"]
[EndTime "15:36:00 PDT"]
[Termination "IMTominho won by resignation"]

1. d4 {[%clk 0:03:01.9]} 1... d5 {[%clk 0:02:59.5]} 2. c4 {[%clk 0:03:01.5]}
2... c6 {[%clk 0:02:58.9]} 3. Nc3 {[%clk 0:03:00.7]} 3... Nf6 {[%clk 0:02:59.8]}
4. e3 {[%clk 0:02:58.3]} 4... g6 {[%clk 0:02:58.4]} 5. Bd3 {[%clk 0:02:55.3]}
5... Bg7 {[%clk 0:02:58.9]} 6. Nge2 {[%clk 0:02:53.2]} 6... a6 {[%clk
0:02:46.6]} 7. b3 {[%clk 0:02:46.1]} 7... b5 {[%clk 0:02:46.7]} 8. Qc2 {[%clk
0:02:39.7]} 8... O-O {[%clk 0:02:46.6]} 9. O-O {[%clk 0:02:19.8]} 9... Nbd7
{[%clk 0:02:39.5]} 10. f4 {[%clk 0:01:57.2]} 10... bxc4 {[%clk 0:01:57.2]} 11.
bxc4 {[%clk 0:01:59.1]} 11... dxc4 {[%clk 0:01:58.6]} 12. Bxc4 {[%clk
0:01:57.2]} 12... c5 {[%clk 0:02:00]} 13. Bb2 {[%clk 0:01:22.6]} 13... Bb7
{[%clk 0:01:51.5]} 14. Rad1 {[%clk 0:01:15.9]} 14... cxd4 {[%clk 0:01:47.3]} 15.
Nxd4 {[%clk 0:00:53.2]} 15... Rc8 {[%clk 0:01:48.1]} 16. Qe2 {[%clk 0:00:49.1]}
16... Qb6 {[%clk 0:01:39.5]} 17. Nb3 {[%clk 0:00:35.5]} 17... e6 {[%clk
0:01:21.7]} 18. Ba3 {[%clk 0:00:31.8]} 18... Rfd8 {[%clk 0:01:21.5]} 19. Rd6
{[%clk 0:00:23.4]} 19... Qc7 {[%clk 0:01:21.9]} 20. Nd2 {[%clk 0:00:18.9]} 20...
Bf8 {[%clk 0:01:17.4]} 0-1

[Event "*** Titled Tuesday Blitz"]
[Site "Chess.com"]
[Date "2019.09.03"]
[Round "3"]
[White "NormWeinstein"]
[Black "leschebaza"]
[Result "1-0"]
[WhiteElo "2383"]
[BlackElo "2119"]
[TimeControl "180+2"]
[EndTime "15:36:00 PDT"]
[Termination "NormWeinstein won by resignation"]

1. e4 {[%clk 0:03:01.9]} 1... c6 {[%clk 0:02:56]} 2. d4 {[%clk 0:03:01.6]} 2...
d5 {[%clk 0:02:57.3]} 3. exd5 {[%clk 0:03:03.1]} 3... cxd5 {[%clk 0:02:58.5]} 4.
c4 {[%clk 0:03:04.5]} 4... Nf6 {[%clk 0:02:59.3]} 5. Nc3 {[%clk 0:03:05.8]} 5...
g6 {[%clk 0:03:00.7]} 6. cxd5 {[%clk 0:03:05.4]} 6... Bg7 {[%clk 0:03:02.1]} 7.
Bc4 {[%clk 0:03:06.2]} 7... O-O {[%clk 0:03:03.4]} 8. Nge2 {[%clk 0:03:07.2]}
8... Nbd7 {[%clk 0:03:04.9]} 9. Nf4 {[%clk 0:03:08.6]} 9... Nb6 {[%clk
0:03:05.8]} 10. Bb3 {[%clk 0:03:10]} 10... a5 {[%clk 0:03:03.7]} 11. a3 {[%clk
0:03:07.8]} 11... g5 {[%clk 0:02:56.3]} 12. Nh5 {[%clk 0:03:07.7]} 12... Nxh5
{[%clk 0:02:54.4]} 13. Qxh5 {[%clk 0:03:07.9]} 13... h6 {[%clk 0:02:54.2]} 14.
h4 {[%clk 0:03:08.4]} 14... g4 {[%clk 0:02:36.8]} 15. Bxh6 {[%clk 0:03:07.2]}
15... Bxd4 {[%clk 0:02:31.8]} 16. O-O {[%clk 0:02:52.7]} 16... Qd6 {[%clk
0:01:29.3]} 17. Bxf8 {[%clk 0:02:44.3]} 17... Kxf8 {[%clk 0:01:29.5]} 18. Nb5
{[%clk 0:02:23.8]} 18... Qf6 {[%clk 0:01:30.2]} 19. Nxd4 {[%clk 0:02:12.2]}
19... Qxd4 {[%clk 0:01:30.7]} 20. d6 {[%clk 0:01:43.7]} 20... e6 {[%clk
0:01:31.5]} 21. Rfd1 {[%clk 0:01:38.4]} 21... Qg7 {[%clk 0:01:28.4]} 22. Rac1
{[%clk 0:01:33.6]} 22... Bd7 {[%clk 0:01:07.7]} 23. Rc7 {[%clk 0:01:31.3]} 23...
Ra7 {[%clk 0:00:27]} 24. Qc5 {[%clk 0:01:24.8]} 1-0

[Event "*** Titled Tuesday Blitz"]
[Site "Chess.com"]
[Date "2019.09.03"]
[Round "3"]
[White "ckgchess"]
[Black "nOcHeaTiNgKiD"]
[Result "1-0"]
[WhiteElo "2738"]
[BlackElo "2461"]
[TimeControl "180+2"]
[EndTime "15:36:04 PDT"]
[Termination "ckgchess won by resignation"]

1. e4 {[%clk 0:03:01.9]} 1... e5 {[%clk 0:03:00.4]} 2. Nc3 {[%clk 0:03:02.6]}
2... Nf6 {[%clk 0:03:01.4]} 3. g3 {[%clk 0:03:04.1]} 3... d5 {[%clk 0:03:01.1]}
4. exd5 {[%clk 0:03:06]} 4... Nxd5 {[%clk 0:03:02.3]} 5. Bg2 {[%clk 0:03:07.6]}
5... Nxc3 {[%clk 0:03:01.9]} 6. bxc3 {[%clk 0:03:09.5]} 6... Nc6 {[%clk
0:03:02.8]} 7. Nf3 {[%clk 0:03:10.8]} 7... Bc5 {[%clk 0:03:02.9]} 8. O-O {[%clk
0:03:11.3]} 8... O-O {[%clk 0:03:03.5]} 9. Re1 {[%clk 0:03:12.9]} 9... Re8
{[%clk 0:03:04.2]} 10. d4 {[%clk 0:03:14]} 10... exd4 {[%clk 0:03:04.1]} 11.
Rxe8+ {[%clk 0:03:15.9]} 11... Qxe8 {[%clk 0:03:05]} 12. cxd4 {[%clk 0:03:17.8]}
12... Bb6 {[%clk 0:03:05]} 13. c3 {[%clk 0:03:19.1]} 13... Bg4 {[%clk
0:03:04.3]} 14. h3 {[%clk 0:03:18.7]} 14... Bh5 {[%clk 0:03:05.3]} 15. Bf4
{[%clk 0:02:50.3]} 15... Rd8 {[%clk 0:02:54]} 16. Qb3 {[%clk 0:02:38.8]} 16...
Na5 {[%clk 0:02:51.4]} 17. Qc2 {[%clk 0:02:35]} 17... Bg6 {[%clk 0:02:50.9]} 18.
Qd1 {[%clk 0:02:27]} 18... Be4 {[%clk 0:02:50.3]} 19. Qf1 {[%clk 0:01:49.1]}
19... Qa4 {[%clk 0:01:36.1]} 20. Re1 {[%clk 0:01:47.5]} 20... Bd5 {[%clk
0:01:35.7]} 21. Qe2 {[%clk 0:01:44.4]} 21... f6 {[%clk 0:01:25.1]} 22. Nh4
{[%clk 0:01:17.2]} 22... Qxa2 {[%clk 0:01:15]} 23. Qg4 {[%clk 0:01:09.3]} 23...
Bf7 {[%clk 0:01:00]} 24. Nf5 {[%clk 0:01:07.4]} 24... Bg6 {[%clk 0:01:00.4]} 25.
Ne7+ {[%clk 0:01:01.1]} 25... Kf7 {[%clk 0:00:50.6]} 26. Bd5+ {[%clk 0:00:59.9]}
1-0

[Event "*** Titled Tuesday Blitz"]
[Site "Chess.com"]
[Date "2019.09.03"]
[Round "3"]
[White "Gentlejimmy7"]
[Black "Hikaru"]
[Result "0-1"]
[WhiteElo "2516"]
[BlackElo "3231"]
[TimeControl "180+2"]
[EndTime "15:36:09 PDT"]
[Termination "Hikaru won by resignation"]

1. d4 {[%clk 0:03:01.9]} 1... d5 {[%clk 0:03:00.9]} 2. Nf3 {[%clk 0:03:02.3]}
2... e6 {[%clk 0:03:01.3]} 3. g3 {[%clk 0:03:02.9]} 3... Bd6 {[%clk 0:03:02]} 4.
Bg2 {[%clk 0:03:04.8]} 4... f5 {[%clk 0:03:03.2]} 5. b3 {[%clk 0:03:04.6]} 5...
c6 {[%clk 0:03:03.6]} 6. O-O {[%clk 0:03:04.1]} 6... Nf6 {[%clk 0:03:03.5]} 7.
Ba3 {[%clk 0:03:05.1]} 7... Bc7 {[%clk 0:03:04.6]} 8. Nbd2 {[%clk 0:02:50.1]}
8... Nbd7 {[%clk 0:02:56.6]} 9. c4 {[%clk 0:02:44.5]} 9... h6 {[%clk 0:02:57.2]}
10. Ne1 {[%clk 0:02:19.6]} 10... Kf7 {[%clk 0:02:56.3]} 11. Nd3 {[%clk
0:02:20.1]} 11... Re8 {[%clk 0:02:57.9]} 12. Nf3 {[%clk 0:02:20.2]} 12... Kg8
{[%clk 0:02:59.2]} 13. Nfe5 {[%clk 0:02:17.9]} 13... Nxe5 {[%clk 0:02:57.9]} 14.
Nxe5 {[%clk 0:02:19.8]} 14... Nd7 {[%clk 0:02:58]} 15. f4 {[%clk 0:02:12.6]}
15... a5 {[%clk 0:02:47.6]} 16. Qc2 {[%clk 0:02:02.1]} 16... Nxe5 {[%clk
0:02:43.4]} 17. fxe5 {[%clk 0:01:54.4]} 17... a4 {[%clk 0:02:34.8]} 18. e3
{[%clk 0:01:51.2]} 18... Bd7 {[%clk 0:02:32.4]} 19. Rfc1 {[%clk 0:01:31.6]}
19... Qg5 {[%clk 0:02:20.3]} 20. Qf2 {[%clk 0:01:28.2]} 20... Bd8 {[%clk
0:02:18.7]} 21. Bd6 {[%clk 0:01:25.9]} 21... Be7 {[%clk 0:02:12.8]} 22. c5
{[%clk 0:01:19.5]} 22... Bd8 {[%clk 0:02:13.5]} 23. b4 {[%clk 0:01:19.8]} 23...
a3 {[%clk 0:02:12.9]} 24. Rab1 {[%clk 0:01:20.3]} 24... Qh5 {[%clk 0:02:11]} 25.
Bf3 {[%clk 0:01:18.5]} 25... Qf7 {[%clk 0:02:11.1]} 26. Rb3 {[%clk 0:01:19.6]}
26... b5 {[%clk 0:02:10.9]} 27. Qe2 {[%clk 0:01:04.9]} 27... g6 {[%clk
0:02:10.9]} 28. Qd3 {[%clk 0:01:04.7]} 28... h5 {[%clk 0:02:09.9]} 29. Rxa3
{[%clk 0:01:04.6]} 29... Bg5 {[%clk 0:02:10.6]} 30. Rxa8 {[%clk 0:01:02.2]}
30... Rxa8 {[%clk 0:02:12.5]} 31. a3 {[%clk 0:01:03.2]} 31... Bh6 {[%clk
0:02:12.8]} 32. Rc3 {[%clk 0:01:03.2]} 32... g5 {[%clk 0:02:14]} 33. Bg2 {[%clk
0:01:03.7]} 33... h4 {[%clk 0:02:14.9]} 34. Qe2 {[%clk 0:01:04.2]} 34... g4
{[%clk 0:02:16.2]} 35. Qf2 {[%clk 0:01:03.1]} 35... hxg3 {[%clk 0:02:15.3]} 36.
hxg3 {[%clk 0:01:05]} 36... Kg7 {[%clk 0:02:15.9]} 37. Bf1 {[%clk 0:00:58.6]}
37... Bg5 {[%clk 0:02:16.4]} 38. Qg2 {[%clk 0:00:56.7]} 38... Rh8 {[%clk
0:02:15.7]} 39. Rc2 {[%clk 0:00:39.5]} 39... Bxe3+ {[%clk 0:02:16.2]} 40. Rf2
{[%clk 0:00:38.9]} 40... f4 {[%clk 0:02:17.3]} 41. gxf4 {[%clk 0:00:33.1]} 41...
Qxf4 {[%clk 0:02:19.2]} 42. Be7 {[%clk 0:00:34.2]} 42... Bxf2+ {[%clk
0:02:17.9]} 43. Qxf2 {[%clk 0:00:35.1]} 43... Rh1+ {[%clk 0:02:19.8]} 44. Kxh1
{[%clk 0:00:36.3]} 44... Qxf2 {[%clk 0:02:20.6]} 45. Bf6+ {[%clk 0:00:38.2]}
45... Kf7 {[%clk 0:02:21.9]} 0-1

[Event "*** Titled Tuesday Blitz"]
[Site "Chess.com"]
[Date "2019.09.03"]
[Round "3"]
[White "harvsp123"]
[Black "INLOVEWITHF"]
[Result "0-1"]
[WhiteElo "2538"]
[BlackElo "2288"]
[TimeControl "180+2"]
[EndTime "15:36:20 PDT"]
[Termination "INLOVEWITHF won by checkmate"]

1. d4 {[%clk 0:03:01.9]} 1... Nf6 {[%clk 0:03:00.2]} 2. c4 {[%clk 0:03:03]} 2...
g6 {[%clk 0:03:00.7]} 3. Nc3 {[%clk 0:03:04.5]} 3... Bg7 {[%clk 0:03:01.7]} 4.
e4 {[%clk 0:03:05.4]} 4... d6 {[%clk 0:03:03.2]} 5. Be2 {[%clk 0:03:07]} 5...
O-O {[%clk 0:03:04]} 6. Be3 {[%clk 0:03:08.6]} 6... Nc6 {[%clk 0:03:03]} 7. d5
{[%clk 0:03:09.3]} 7... Ne5 {[%clk 0:03:03.6]} 8. f4 {[%clk 0:03:10.8]} 8...
Neg4 {[%clk 0:03:04.6]} 9. Bd2 {[%clk 0:03:12.6]} 9... Nh6 {[%clk 0:03:04.8]}
10. Nf3 {[%clk 0:02:57.8]} 10... e6 {[%clk 0:03:03.2]} 11. dxe6 {[%clk 0:02:55]}
11... fxe6 {[%clk 0:03:03.4]} 12. O-O {[%clk 0:02:50.8]} 12... Nh5 {[%clk
0:03:00.7]} 13. g3 {[%clk 0:02:22.7]} 13... e5 {[%clk 0:02:54.4]} 14. fxe5
{[%clk 0:02:05.8]} 14... Bh3 {[%clk 0:02:54.2]} 15. Rf2 {[%clk 0:02:05.1]} 15...
Ng4 {[%clk 0:02:53.7]} 16. Bg5 {[%clk 0:02:02.6]} 16... Nxf2 {[%clk 0:02:48.2]}
17. Qd5+ {[%clk 0:02:01.6]} 17... Kh8 {[%clk 0:02:42.1]} 18. Bxd8 {[%clk
0:02:01.2]} 18... Raxd8 {[%clk 0:01:11.7]} 19. Kxf2 {[%clk 0:01:59.2]} 19...
dxe5 {[%clk 0:01:06.4]} 20. Qxb7 {[%clk 0:01:58.7]} 20... Nf6 {[%clk 0:00:59.7]}
21. Qxc7 {[%clk 0:01:51.1]} 21... Ng4+ {[%clk 0:01:00.1]} 22. Kg1 {[%clk
0:01:52.3]} 22... Bh6 {[%clk 0:01:00.6]} 23. Ng5 {[%clk 0:00:49.3]} 23... Bxg5
{[%clk 0:01:00.7]} 24. Bxg4 {[%clk 0:00:49.9]} 24... Be3+ {[%clk 0:01:01.6]} 25.
Kh1 {[%clk 0:00:49.8]} 25... Bxg4 {[%clk 0:01:00.6]} 26. Qxe5+ {[%clk
0:00:50.5]} 26... Kg8 {[%clk 0:01:01.9]} 27. h3 {[%clk 0:00:44.6]} 27... Bf3+
{[%clk 0:01:00.4]} 28. Kh2 {[%clk 0:00:45.4]} 28... Rd2+ {[%clk 0:01:01.3]} 29.
Ne2 {[%clk 0:00:38.6]} 29... Rxe2# {[%clk 0:01:02]} 0-1

[Event "*** Titled Tuesday Blitz"]
[Site "Chess.com"]
[Date "2019.09.03"]
[Round "3"]
[White "Denis_Palkovich"]
[Black "albi1999"]
[Result "0-1"]
[WhiteElo "2217"]
[BlackElo "2477"]
[TimeControl "180+2"]
[EndTime "15:36:26 PDT"]
[Termination "albi1999 won on time"]

1. d4 {[%clk 0:03:01.9]} 1... Nf6 {[%clk 0:03:00.6]} 2. Bf4 {[%clk 0:03:02.1]}
2... e6 {[%clk 0:03:01.7]} 3. e3 {[%clk 0:03:02.7]} 3... c5 {[%clk 0:03:02.7]}
4. Nd2 {[%clk 0:02:54]} 4... Nc6 {[%clk 0:03:00.2]} 5. c3 {[%clk 0:02:48.3]}
5... b6 {[%clk 0:02:58.9]} 6. Nc4 {[%clk 0:02:37.2]} 6... d5 {[%clk 0:02:56.2]}
7. Ne5 {[%clk 0:02:36.3]} 7... Nxe5 {[%clk 0:02:56.5]} 8. dxe5 {[%clk
0:02:35.4]} 8... Nd7 {[%clk 0:02:55.5]} 9. Nf3 {[%clk 0:02:31.3]} 9... Be7
{[%clk 0:02:56.3]} 10. Bd3 {[%clk 0:02:31.5]} 10... Bb7 {[%clk 0:02:55.9]} 11.
h4 {[%clk 0:02:21.8]} 11... h6 {[%clk 0:02:46.5]} 12. h5 {[%clk 0:02:10]} 12...
Qc7 {[%clk 0:02:46.7]} 13. Qa4 {[%clk 0:02:01.5]} 13... a6 {[%clk 0:02:44.3]}
14. Rh3 {[%clk 0:01:51.7]} 14... b5 {[%clk 0:02:43.4]} 15. Qd1 {[%clk
0:01:36.8]} 15... O-O-O {[%clk 0:02:35.6]} 16. Rg3 {[%clk 0:01:20]} 16... Bf8
{[%clk 0:02:34.1]} 17. a4 {[%clk 0:01:13.5]} 17... Qb6 {[%clk 0:02:30.2]} 18.
axb5 {[%clk 0:01:12.9]} 18... axb5 {[%clk 0:02:32.1]} 19. Nd2 {[%clk 0:00:54.8]}
19... b4 {[%clk 0:02:29.4]} 20. cxb4 {[%clk 0:00:51.8]} 20... c4 {[%clk
0:02:30.1]} 21. Be2 {[%clk 0:00:35.8]} 21... Bxb4 {[%clk 0:02:22.3]} 22. Rxg7
{[%clk 0:00:28]} 22... Nc5 {[%clk 0:02:23.2]} 23. Kf1 {[%clk 0:00:21.3]} 23...
Bxd2 {[%clk 0:02:16.7]} 24. Qxd2 {[%clk 0:00:21.8]} 24... Nb3 {[%clk 0:02:18.2]}
25. Qd1 {[%clk 0:00:19.9]} 25... Nxa1 {[%clk 0:02:18.7]} 26. Qxa1 {[%clk
0:00:21.1]} 26... Rd7 {[%clk 0:02:13.1]} 27. Qa3 {[%clk 0:00:11.7]} 27... Kc7
{[%clk 0:02:08.3]} 28. Kg1 {[%clk 0:00:10.5]} 28... Ra8 {[%clk 0:02:07.5]} 29.
Qc3 {[%clk 0:00:08.3]} 29... Qb3 {[%clk 0:02:00.6]} 30. Qxb3 {[%clk 0:00:06]}
30... cxb3 {[%clk 0:02:02.5]} 31. Bxh6 {[%clk 0:00:06.9]} 31... Ra2 {[%clk
0:01:58.8]} 32. Bb5 {[%clk 0:00:06.1]} 32... Bc6 {[%clk 0:01:53.9]} 33. Bxc6
{[%clk 0:00:05.5]} 33... Kxc6 {[%clk 0:01:55.8]} 0-1